{"text_format":"1","workbook":"xlsx","n_sheets":6,"sheets":["Home","FormularFälligkeiten","FormularZonenplan","FormularGemeinde","Gemeindeverzeichnis","Daten"],"not_rendered":{"charts":0,"images":3,"macros":1,"external_links":0,"defined_names":9,"comments":0,"pivot_tables":0},"unopened":[],"bounds":{"document_bytes":16777216,"sheet_cells":100000,"rows_first":2000,"rows_last":500,"rows_between":2000,"halvings":0,"cell_chars":16384,"cell_head_chars":4096},"cells_cut":0,"cells_raw":0,"read":"whole","date_system":"1900"}

{"sheet":"Home","index":0,"n_rows":29,"n_cols":13,"rows_kept":29,"cut":false,"hidden":false,"merged":[[1,6,1,11],[14,8,14,10],[13,8,13,10],[10,8,10,10],[11,8,11,10],[12,8,12,10],[8,8,8,10]]}
[]
[null,"Steuerverwaltung"]
[null,"Spezialsteuern",null,null,null,null,"Mehrwertabgabe"]
[null,"Mehrwertabgabe"]
[]
[]
[]
[]
[null,null,"Formulare",null,null,null,"Informationen zur Gemeinde (Kontaktperson)",null,null,null,null,null,true]
[]
[null,null,null,null,null,null,"Nachname:"]
[null,null,null,null,null,null,"Vorname"]
[null,null,null,null,null,null,"Abteilung:"]
[null,null,null,null,null,null,"Telefon:"]
[null,null,null,null,null,null,"Email:",null,null,null,null,null,{"$f":"IsValidMailAddress(I15)=TRUE()","v":false}]
[]
[]
[]
[]
[]
[]
[]
[null,null,"Kontakt Steuerverwaltung",null,null,null,"Mitteilung"]
[]
[null,null,"Fragen zur Veranlagung:"]
[null,null,"Urs Steinmann, Tel. 058 345 31 81"]
[]
[null,null,"Fragen zum Bezug:"]
[null,null,"Hansruedi Rutz, Tel. 058 345 31 95"]

{"sheet":"FormularFälligkeiten","index":1,"n_rows":36,"n_cols":12,"rows_kept":36,"cut":false,"hidden":false,"merged":[[15,2,15,3],[8,2,8,3],[9,2,9,3],[21,2,21,3],[10,6,10,8],[11,6,11,8],[12,6,12,8],[13,6,13,8],[20,6,20,8],[17,6,17,8],[21,6,21,8],[10,2,10,3],[11,2,11,3],[12,2,12,3],[13,2,13,3],[14,2,14,3],[34,3,34,5],[33,3,33,5],[32,3,32,5],[7,6,7,11],[8,6,8,8],[18,6,18,8],[19,6,19,8],[31,3,31,5],[26,1,28,11],[16,2,16,3],[17,2,17,3],[18,2,18,3],[19,2,19,3],[20,2,20,3],[23,2,23,3],[22,2,22,3],[9,6,9,8],[22,6,22,8],[23,6,23,8],[16,6,16,8],[7,4,7,5],[14,6,14,8],[15,6,15,8]]}
[]
[null,"Meldeformular Mehrwertabgabe"]
[null,"Fälligkeiten",null,null,null,null,"Gemeinde",{"$f":"IF(Home!I9=\"\",\"noch nicht erfasst\",Home!I9)","v":"noch nicht erfasst"}]
[]
[null,"Zustellung an:"]
[null,"Steuerverwaltung, Spezialsteuern, Mehrwertabgabe, Schlossmühlestrasse 15, 8510 Frauenfeld (spätestens innert 14 Tage nach Rechtskraft Baubewilligung/Erschliessungsprojekt)"]
[]
[null,null,null,null,"Veranlagung der Mehrwertabgabe",null,"Entscheid infolge Baubewilligung / Erschliessungsprojekt 1) oder Handänderung"]
[null,"Parz.Nr.","Grundbuch",null,"Datum","Geschäfts-Nr.","Fälligkeit in Folge",null,null,"Datum","durch","in Rechtskraft am"]
[]
[]
[]
[]
[]
[]
[]
[]
[]
[]
[]
[]
[]
[]
[]
[null,null,null,null,null,null,null,null,null,null,null,"1) massgebender rechtskräftiger Entscheid"]
[null,"Bemerkung"]
[]
[]
[]
[]
[null,"Kontaktangaben"]
[null,"Kontaktperson:",null,{"$f":"IF(OR(Home!I11=\"\",Home!I12=\"\"),\"noch nicht erfasst\",IF(Home!I12<>\"\",Home!I12,\"\") & \" \" & IF(Home!I11<>\"\",Home!I11,\"\"))","v":"noch nicht erfasst"},null,null,null,"Datum:",null,"Unterschrift der Gemeindebehörde:"]
[null,"Abteilung:",null,{"$f":"IF(Home!I13<>\"\",Home!I13,\"noch nicht erfasst\")","v":"noch nicht erfasst"}]
[null,"Telefon:",null,{"$f":"IF(Home!I14<>\"\",Home!I14,\"noch nicht erfasst\")","v":"noch nicht erfasst"}]
[null,"Email:",null,{"$f":"IF(Home!I15<>\"\",Home!I15,\"noch nicht erfasst\")","v":"noch nicht erfasst"},null,null,null,{"$f":"TODAY()","v":"2024-01-12"}]
[null,null,null,null,null,null,null,null,null,"(entfällt bei Übermittlung durch Email)"]

{"sheet":"FormularZonenplan","index":2,"n_rows":35,"n_cols":13,"rows_kept":35,"cut":false,"hidden":false,"merged":[[33,3,33,5],[32,3,32,5],[12,10,13,11],[8,5,8,6],[9,5,9,6],[10,5,10,6],[11,5,11,6],[31,3,31,5],[8,10,9,10],[30,3,30,5],[25,1,27,12],[14,2,14,3],[14,5,14,6],[10,12,11,12],[12,12,13,12],[10,10,11,11],[14,8,14,9],[7,5,7,6],[7,8,7,9],[8,8,8,9],[9,8,9,9],[10,8,10,9],[11,8,11,9],[7,10,7,11],[12,2,12,3],[13,2,13,3],[12,5,12,6],[13,5,13,6],[7,2,7,3],[8,2,8,3],[9,2,9,3],[10,2,10,3],[11,2,11,3],[12,8,12,9],[13,8,13,9],[17,2,17,3],[17,5,17,6],[18,2,18,3],[18,5,18,6],[15,2,15,3],[15,5,15,6],[16,2,16,3],[16,5,16,6],[22,2,22,3],[22,5,22,6],[21,2,21,3],[21,5,21,6],[19,2,19,3],[19,5,19,6],[20,2,20,3],[20,5,20,6],[20,8,20,9],[21,8,21,9],[22,8,22,9],[15,8,15,9],[16,8,16,9],[17,8,17,9],[18,8,18,9],[19,8,19,9]]}
[]
[null,"Meldeformular Mehrwertabgabe"]
[null,"Zonenplanänderung",null,null,null,null,"Gemeinde",{"$f":"IF(Home!I9=\"\",\"noch nicht erfasst\",Home!I9)","v":"noch nicht erfasst"}]
[]
[null,"Zustellung an:"]
[null,"Steuerverwaltung, GSB Mehrwertabgabe, Schlossmühlestrasse 15, 8510 Frauenfeld (spätestens innert 14 Tage nach Rechtskraft der Zuweisung)"]
[]
[null,"Parz.Nr.","Grundbuch",null,"Zonenänderung von-zu","Zone ALT",null,"Zone NEU","umgezonte Fläche in m2",null,null,null,"Datum"]
[null,null,null,null,null,null,null,null,null,null,"Auflage","von "]
[null,null,null,null,null,null,null,null,null,null,null,"bis "]
[null,null,null,null,null,null,null,null,null,null,"Genehmigungsentscheid\nDBU am"]
[]
[null,null,null,null,null,null,null,null,null,null,"Rechtskraft\nGenehmigungsentscheid\nDBU am"]
[]
[]
[]
[]
[]
[]
[]
[]
[]
[]
[]
[null,"Bemerkung"]
[]
[]
[]
[]
[null,"Kontaktangaben"]
[null,"Kontaktperson:",null,{"$f":"IF(OR(Home!I11=\"\",Home!I12=\"\"),\"noch nicht erfasst\",IF(Home!I12<>\"\",Home!I12,\"\") & \" \" & IF(Home!I11<>\"\",Home!I11,\"\"))","v":"noch nicht erfasst"},null,null,null,null,"Datum:",null,"Unterschrift der Gemeindebehörde:"]
[null,"Abteilung:",null,{"$f":"IF(Home!I13<>\"\",Home!I13,\"noch nicht erfasst\")","v":"noch nicht erfasst"}]
[null,"Telefon:",null,{"$f":"IF(Home!I14<>\"\",Home!I14,\"noch nicht erfasst\")","v":"noch nicht erfasst"}]
[null,"Email:",null,{"$f":"IF(Home!I15<>\"\",Home!I15,\"noch nicht erfasst\")","v":"noch nicht erfasst"},null,null,null,null,{"$f":"TODAY()","v":"2024-01-12"}]
[null,null,null,null,null,null,null,null,null,null,"(entfällt bei Übermittlung durch Email)"]

{"sheet":"FormularGemeinde","index":3,"n_rows":38,"n_cols":8,"rows_kept":38,"cut":false,"hidden":false,"merged":[[10,1,10,3],[11,1,11,3],[12,1,12,3],[13,1,13,3],[36,1,36,2],[28,1,30,5],[15,4,15,5],[24,1,24,3],[24,4,24,5],[23,4,23,5],[23,1,23,3],[17,1,17,3],[11,4,11,5],[12,4,12,5],[13,4,13,5],[14,4,14,5],[14,1,14,3],[15,1,15,3],[18,1,18,3],[18,4,18,5],[22,1,22,3],[22,4,22,5],[19,1,19,3],[19,4,19,5],[20,1,20,3],[20,4,20,5]]}
[]
[null,"Formular Mehrwertabgabe"]
[null,"Kontaktstelle und Zahlungsverbindung der Gemeinde"]
[]
[null,"Gemeinde",null,{"$f":"IF(Home!I9=\"\",\"noch nicht erfasst\",Home!I9)","v":"noch nicht erfasst"}]
[]
[null,"Zustellung an:"]
[null,"Steuerverwaltung, Spezialsteuern, Mehrwertabgabe, Schlossmühlestrasse 9, 8510 Frauenfeld"]
[]
[]
[null,"Kontaktperson Gemeinde:"]
[null,"Nachname",null,null,{"$f":"IF(Home!I11<>\"\",Home!I11,\"noch nicht erfasst\")","v":"noch nicht erfasst"}]
[null,"Vorname",null,null,{"$f":"IF(Home!I12<>\"\",Home!I12,\"noch nicht erfasst\")","v":"noch nicht erfasst"}]
[null,"Abteilung",null,null,{"$f":"IF(Home!I13<>\"\",Home!I13,\"noch nicht erfasst\")","v":"noch nicht erfasst"}]
[null,"Telefon",null,null,{"$f":"IF(Home!I14<>\"\",Home!I14,\"noch nicht erfasst\")","v":"noch nicht erfasst"}]
[null,"Email",null,null,{"$f":"IF(Home!I15<>\"\",Home!I15,\"noch nicht erfasst\")","v":"noch nicht erfasst"}]
[]
[null,"Zahlungsverbindung Gemeinde:",null,null,null,null,null,true]
[null,"Kontoinhaber Name:"]
[null,"Kontoinhaber Adresse:"]
[null,"Kontoinhaber PLZ/Ort"]
[]
[null,"Post oder Bank:"]
[null,"Bankname:"]
[null,"IBAN-Nr.",null,null,null,null,null,{"$f":"IBANOK(E25)","v":false}]
[]
[]
[null,"Bemerkung"]
[]
[]
[]
[]
[]
[null,"Datum:",null,null,"Unterschrift der Gemeindebehörde:"]
[]
[]
[null,{"$f":"TODAY()","v":"2024-01-12"}]
[null,null,null,null,"(entfällt bei Übermittlung durch Email)"]

{"sheet":"Gemeindeverzeichnis","index":4,"n_rows":81,"n_cols":9,"rows_kept":81,"cut":false,"hidden":false,"merged":[]}
["GDEKT","GDEBZNR","GDENR","GDENAME","GDENAMK","GDEBZNA","GDEKTNA","GDEMUTDAT","Auswahl"]
["TG",2014,4551,"Aadorf","Aadorf","Bezirk Münchwilen","Thurgau","2011-01-01"]
["TG",2015,4711,"Affeltrangen","Affeltrangen","Bezirk Weinfelden","Thurgau","2011-01-01"]
["TG",2013,4641,"Altnau","Altnau","Bezirk Kreuzlingen","Thurgau","2011-01-01"]
["TG",2015,4881,"Amlikon-Bissegg","Amlikon-Bissegg","Bezirk Weinfelden","Thurgau","2011-01-01"]
["TG",2011,4461,"Amriswil","Amriswil","Bezirk Arbon","Thurgau","2011-01-01"]
["TG",2011,4401,"Arbon","Arbon","Bezirk Arbon","Thurgau","2011-01-01"]
["TG",2012,4536,"Basadingen-Schlattingen","Basadingen-Schlattingen","Bezirk Frauenfeld","Thurgau","2011-01-01"]
["TG",2015,4891,"Berg (TG)","Berg (TG)","Bezirk Weinfelden","Thurgau","2011-01-01"]
["TG",2012,4801,"Berlingen","Berlingen","Bezirk Frauenfeld","Thurgau","2011-01-01"]
["TG",2014,4716,"Bettwiesen","Bettwiesen","Bezirk Münchwilen","Thurgau","2011-01-01"]
["TG",2014,4721,"Bichelsee-Balterswil","Bichelsee-Balterswil","Bezirk Münchwilen","Thurgau","2011-01-01"]
["TG",2015,4901,"Birwinken","Birwinken","Bezirk Weinfelden","Thurgau","2011-01-01"]
["TG",2015,4471,"Bischofszell","Bischofszell","Bezirk Weinfelden","Thurgau","2011-01-01"]
["TG",2013,4643,"Bottighofen","Bottighofen","Bezirk Kreuzlingen","Thurgau","2011-01-01"]
["TG",2014,4723,"Braunau","Braunau","Bezirk Münchwilen","Thurgau","2011-01-01"]
["TG",2015,4911,"Bürglen (TG)","Bürglen (TG)","Bezirk Weinfelden","Thurgau","2011-01-01"]
["TG",2015,4921,"Bussnang","Bussnang","Bezirk Weinfelden","Thurgau","2011-01-01"]
["TG",2012,4545,"Diessenhofen","Diessenhofen","Bezirk Frauenfeld","Thurgau","2011-01-01"]
["TG",2011,4406,"Dozwil","Dozwil","Bezirk Arbon","Thurgau","2011-01-01"]
["TG",2011,4411,"Egnach","Egnach","Bezirk Arbon","Thurgau","2011-01-01"]
["TG",2015,4476,"Erlen","Erlen","Bezirk Weinfelden","Thurgau","2011-01-01"]
["TG",2013,4646,"Ermatingen","Ermatingen","Bezirk Kreuzlingen","Thurgau","2011-01-01"]
["TG",2012,4806,"Eschenz","Eschenz","Bezirk Frauenfeld","Thurgau","2011-01-01"]
["TG",2014,4724,"Eschlikon","Eschlikon","Bezirk Münchwilen","Thurgau","2011-01-01"]
["TG",2012,4561,"Felben-Wellhausen","Felben-Wellhausen","Bezirk Frauenfeld","Thurgau","2011-01-01"]
["TG",2014,4726,"Fischingen","Fischingen","Bezirk Münchwilen","Thurgau","2011-01-01"]
["TG",2012,4566,"Frauenfeld","Frauenfeld","Bezirk Frauenfeld","Thurgau","2011-01-01"]
["TG",2012,4571,"Gachnang","Gachnang","Bezirk Frauenfeld","Thurgau","2011-01-01"]
["TG",2013,4651,"Gottlieben","Gottlieben","Bezirk Kreuzlingen","Thurgau","2011-01-01"]
["TG",2013,4656,"Güttingen","Güttingen","Bezirk Kreuzlingen","Thurgau","2011-01-01"]
["TG",2015,4486,"Hauptwil-Gottshaus","Hauptwil-Gottshaus","Bezirk Weinfelden","Thurgau","2011-01-01"]
["TG",2011,4416,"Hefenhofen","Hefenhofen","Bezirk Arbon","Thurgau","2011-01-01"]
["TG",2012,4811,"Herdern","Herdern","Bezirk Frauenfeld","Thurgau","2011-01-01"]
["TG",2015,4495,"Hohentannen","Hohentannen","Bezirk Weinfelden","Thurgau","2011-01-01"]
["TG",2012,4816,"Homburg","Homburg","Bezirk Frauenfeld","Thurgau","2011-01-01"]
["TG",2011,4421,"Horn","Horn","Bezirk Arbon","Thurgau","2011-01-01"]
["TG",2012,4590,"Hüttlingen","Hüttlingen","Bezirk Frauenfeld","Thurgau","2011-01-01"]
["TG",2012,4821,"Hüttwilen","Hüttwilen","Bezirk Frauenfeld","Thurgau","2011-01-01"]
["TG",2013,4666,"Kemmental","Kemmental","Bezirk Kreuzlingen","Thurgau","2011-01-01"]
["TG",2011,4426,"Kesswil","Kesswil","Bezirk Arbon","Thurgau","2011-01-01"]
["TG",2015,4501,"Kradolf-Schönenberg","Kradolf-Schönenberg","Bezirk Weinfelden","Thurgau","2011-01-01"]
["TG",2013,4671,"Kreuzlingen","Kreuzlingen","Bezirk Kreuzlingen","Thurgau","2011-01-01"]
["TG",2013,4681,"Langrickenbach","Langrickenbach","Bezirk Kreuzlingen","Thurgau","2011-01-01"]
["TG",2013,4683,"Lengwil","Lengwil","Bezirk Kreuzlingen","Thurgau","2011-01-01"]
["TG",2014,4741,"Lommis","Lommis","Bezirk Münchwilen","Thurgau","2011-01-01"]
["TG",2012,4826,"Mammern","Mammern","Bezirk Frauenfeld","Thurgau","2011-01-01"]
["TG",2015,4941,"Märstetten","Märstetten","Bezirk Weinfelden","Thurgau","2011-01-01"]
["TG",2012,4591,"Matzingen","Matzingen","Bezirk Frauenfeld","Thurgau","2011-01-01"]
["TG",2012,4831,"Müllheim","Müllheim","Bezirk Frauenfeld","Thurgau","2011-01-01"]
["TG",2014,4746,"Münchwilen (TG)","Münchwilen (TG)","Bezirk Münchwilen","Thurgau","2011-01-01"]
["TG",2013,4691,"Münsterlingen","Münsterlingen","Bezirk Kreuzlingen","Thurgau","2011-01-01"]
["TG",2012,4601,"Neunforn","Neunforn","Bezirk Frauenfeld","Thurgau","2011-01-01"]
["TG",2012,4841,"Pfyn","Pfyn","Bezirk Frauenfeld","Thurgau","2011-01-01"]
["TG",2013,4846,"Raperswilen","Raperswilen","Bezirk Kreuzlingen","Thurgau","2011-01-01"]
["TG",2014,4751,"Rickenbach (TG)","Rickenbach (TG)","Bezirk Münchwilen","Thurgau","2011-01-01"]
["TG",2011,4431,"Roggwil (TG)","Roggwil (TG)","Bezirk Arbon","Thurgau","2011-01-01"]
["TG",2011,4436,"Romanshorn","Romanshorn","Bezirk Arbon","Thurgau","2011-01-01"]
["TG",2013,4851,"Salenstein","Salenstein","Bezirk Kreuzlingen","Thurgau","2011-01-01"]
["TG",2011,4441,"Salmsach","Salmsach","Bezirk Arbon","Thurgau","2011-01-01"]
["TG",2012,4546,"Schlatt (TG)","Schlatt (TG)","Bezirk Frauenfeld","Thurgau","2011-01-01"]
["TG",2015,4756,"Schönholzerswilen","Schönholzerswilen","Bezirk Weinfelden","Thurgau","2011-01-01"]
["TG",2014,4761,"Sirnach","Sirnach","Bezirk Münchwilen","Thurgau","2011-01-01"]
["TG",2011,4446,"Sommeri","Sommeri","Bezirk Arbon","Thurgau","2011-01-01"]
["TG",2012,4864,"Steckborn","Steckborn","Bezirk Frauenfeld","Thurgau","2011-01-01"]
["TG",2012,4606,"Stettfurt","Stettfurt","Bezirk Frauenfeld","Thurgau","2011-01-01"]
["TG",2015,4506,"Sulgen","Sulgen","Bezirk Weinfelden","Thurgau","2011-01-01"]
["TG",2013,4696,"Tägerwilen","Tägerwilen","Bezirk Kreuzlingen","Thurgau","2011-01-01"]
["TG",2012,4611,"Thundorf","Thundorf","Bezirk Frauenfeld","Thurgau","2011-01-01"]
["TG",2014,4776,"Tobel-Tägerschen","Tobel-Tägerschen","Bezirk Münchwilen","Thurgau","2011-01-01"]
["TG",2012,4616,"Uesslingen-Buch","Uesslingen-Buch","Bezirk Frauenfeld","Thurgau","2011-01-01"]
["TG",2011,4451,"Uttwil","Uttwil","Bezirk Arbon","Thurgau","2011-01-01"]
["TG",2012,4871,"Wagenhausen","Wagenhausen","Bezirk Frauenfeld","Thurgau","2011-01-01"]
["TG",2013,4701,"Wäldi","Wäldi","Bezirk Kreuzlingen","Thurgau","2011-01-01"]
["TG",2014,4781,"Wängi","Wängi","Bezirk Münchwilen","Thurgau","2011-01-01"]
["TG",2012,4621,"Warth-Weiningen","Warth-Weiningen","Bezirk Frauenfeld","Thurgau","2011-01-01"]
["TG",2015,4946,"Weinfelden","Weinfelden","Bezirk Weinfelden","Thurgau","2011-01-01"]
["TG",2015,4951,"Wigoltingen","Wigoltingen","Bezirk Weinfelden","Thurgau","2011-01-01"]
["TG",2014,4786,"Wilen (TG)","Wilen (TG)","Bezirk Münchwilen","Thurgau","2011-01-01"]
["TG",2015,4791,"Wuppenau","Wuppenau","Bezirk Weinfelden","Thurgau","2011-01-01"]
["TG",2015,4511,"Zihlschlacht-Sitterdorf","Zihlschlacht-Sitterdorf","Bezirk Weinfelden","Thurgau","2011-01-01"]

{"sheet":"Daten","index":5,"n_rows":4,"n_cols":4,"rows_kept":4,"cut":false,"hidden":false,"merged":[]}
["Auswahl Zonenplanänderung","Auswahl Fälligkeiten","Zahlungsverbindung","Email SV"]
["Boden zu Bauzone","Erschliessungsprojekt","Postkonto","mehrwertabgabe.sv@tg.ch"]
["öff. Zone zu übr. Bauzone","Baubewilligung","Bankkonto"]
[null,"Handänderung"]